[Event "RUS-chT Premier 2021"]
[White "Grachev,Boris"]
[Black "Pervakov,Sergey"]
[WhiteTeam "Шахматная сборная Москвы"]
[BlackTeam "Киммерия"]
[Site "Sochi"]
[Round "8.5"]
[Annotator "RC"]
[Result "1-0"]
[Date "2021.05.09"]
[WhiteElo "2619"]
[BlackElo "2056"]
[PlyCount "53"]
[TimeControl "60"]

1. d4 {[%emt 0:0:0]} d5 {[%emt 0:0:0]} 2. Nf3 {[%emt 0:0:48]} Nf6 {[%emt 0:0:10]
} 3. c4 {[%emt 0:0:6]} c6 {[%emt 0:0:8]} 4. g3 {[%emt 0:0:0]} dxc4 {[%emt 0:2:51]} 5. Bg2 {[%emt 0:1:4]} Nbd7 {[%emt 0:3:31]} 6. a4 {[%emt 0:5:51]} g6 {[%emt 0:8:31]} 7. Na3 {[%emt 0:3:28]} Bg7 {[%emt 0:0:0]} 8. Nxc4 {[%emt 0:0:16]} 0-0 {[%emt 0:0:52]} 9. a5 {[%emt 0:2:54]} Nd5 {[%emt 0:3:20]
} 10. e4 {[%emt 0:1:48]} Nc7 {[%emt 0:4:26]} 11. 0-0 {[%emt 0:0:0]} Nf6 {[%emt 0:11:32]} 12. Nfe5 {[%emt 0:4:28]} Be6 {[%emt 0:5:34]} 13. Be3 {[%emt 0:4:56]} Qc8 {[%emt 0:1:26]} 14. Rc1 {[%emt 0:2:21]} Bh3 {[%emt 0:5:13]
} 15. f3 {[%emt 0:2:57]} Bxg2 {[%emt 0:6:27]} 16. Kxg2 {[%emt 0:0:3]
} Qe6 {[%emt 0:10:48]} 17. Qb3 {[%emt 0:4:46]} Rab8 {[%emt 0:0:0]} 18. Nd3 {[%emt 0:2:5]} Nxe4 {[%emt 0:14:49]} 19. Nf4 {[%emt 0:10:24]} Qf5 {[%emt 0:0:9]} 20. fxe4 {[%emt 0:3:15]} Qxe4+ {[%emt 0:0:7]} 21. Rf3 {[%emt 0:0:13]
} Nb5 {[%emt 0:9:20]} 22. d5 {[%emt 0:14:52]} cxd5 {[%emt 0:0:0]} 23. Qxb5 {[%emt 0:1:17]} dxc4 {[%emt 0:0:7]} 24. Rxc4 {[%emt 0:0:44]} Qb1 {[%emt 0:1:20]} 25. Rf1 {[%emt 0:0:47]} Qxb2+ {[%emt 0:2:10]} 26. Qxb2 {[%emt 0:0:5]
} Bxb2 {[%emt 0:0:5]} 27. Rb1 {[%emt 0:0:9]} 1-0

[Event "RUS-chT Premier 2021"]
[White "Zakhartsov,Vladimir"]
[Black "Alekseev,Evgeny"]
[WhiteTeam "Школа М. Ботвинника"]
[BlackTeam "КПРФ"]
[Site "Sochi"]
[Round "8.8"]
[Annotator "RC"]
[Result "1/2-1/2"]
[Date "2021.05.09"]
[WhiteElo "2486"]
[BlackElo "2619"]
[PlyCount "64"]
[TimeControl "60"]

1. d4 {[%emt 0:0:0]} Nf6 {[%emt 0:0:0]} 2. c4 {[%emt 0:0:0]} e6 {[%emt 0:0:0]} 3. Nc3 {[%emt 0:0:0]} d5 {[%emt 0:0:6]} 4. cxd5 {[%emt 0:0:26]} exd5 {[%emt 0:3:38]} 5. Bg5 {[%emt 0:0:8]} c6 {[%emt 0:1:13]} 6. e3 {[%emt 0:0:17]
} Be7 {[%emt 0:1:55]} 7. Qc2 {[%emt 0:1:6]} Nbd7 {[%emt 0:0:0]} 8. Bd3 {[%emt 0:2:29]} 0-0 {[%emt 0:3:57]} 9. Nf3 {[%emt 0:0:33]} Re8 {[%emt 0:3:54]
} 10. 0-0 {[%emt 0:0:32]} Nf8 {[%emt 0:4:37]} 11. Rab1 {[%emt 0:8:19]
} Be6 {[%emt 0:9:28]} 12. b4 {[%emt 0:3:57]} Rc8 {[%emt 0:0:0]} 13. Na4 {[%emt 0:6:12]} Ne4 {[%emt 0:4:51]} 14. Bf4 {[%emt 0:9:40]} Bd6 {[%emt 0:8:53]} 15. Bxd6 {[%emt 0:14:10]} Nxd6 {[%emt 0:1:13]} 16. Nc5 {[%emt 0:0:8]
} g6 {[%emt 0:7:15]} 17. a4 {[%emt 0:3:14]} Nd7 {[%emt 0:7:13]
} 18. h3 {[%emt 0:2:40]} Qe7 {[%emt 0:6:28]} 19. Nxe6 {[%emt 0:4:36]} Qxe6 {[%emt 0:0:32]
} 20. Qa2 {[%emt 0:0:44]} a6 {[%emt 0:4:6]} 21. b5 {[%emt 0:0:0]} axb5 {[%emt 0:0:43]} 22. axb5 {[%emt 0:0:4]} c5 {[%emt 0:0:20]} 23. dxc5 {[%emt 0:1:41]} Nxc5 {[%emt 0:1:39]} 24. Nd4 {[%emt 0:1:27]} Qf6 {[%emt 0:5:51]
} 25. Rbd1 {[%emt 0:6:0]} Nde4 {[%emt 0:1:3]} 26. Bxe4 {[%emt 0:6:55]
} dxe4 {[%emt 0:0:37]} 27. Qa7 {[%emt 0:3:40]} Qe7 {[%emt 0:0:0]} 28. Rc1 {[%emt 0:3:21]} Nd3 {[%emt 0:1:37]} 29. Rxc8 {[%emt 0:3:36]} Rxc8 {[%emt 0:0:8]} 30. Qb6 {[%emt 0:2:29]} h5 {[%emt 0:2:24]} 31. Ne2 {[%emt 0:2:49]
} Rc2 {[%emt 0:2:30]} 32. Nf4 {[%emt 0:0:25]} Nxf4 {[%emt 0:0:0]} 1/2-1/2

[Event "RUS-chT Premier 2021"]
[White "Zvjaginsev,Vadim"]
[Black "Makarian,Rudik"]
[WhiteTeam "КПРФ"]
[BlackTeam "Школа М. Ботвинника"]
[Site "Sochi"]
[Round "8.9"]
[Annotator "RC"]
[Result "1/2-1/2"]
[Date "2021.05.09"]
[WhiteElo "2614"]
[BlackElo "2468"]
[PlyCount "60"]
[TimeControl "60"]

1. c4 {[%emt 0:0:0]} e6 {[%emt 0:0:0]} 2. Nc3 {[%emt 0:0:7]} Nf6 {[%emt 0:5:54]
} 3. Nf3 {[%emt 0:2:2]} d5 {[%emt 0:1:9]} 4. e3 {[%emt 0:0:0]} dxc4 {[%emt 0:2:35]} 5. Bxc4 {[%emt 0:3:18]} a6 {[%emt 0:0:3]} 6. a4 {[%emt 0:4:48]
} c5 {[%emt 0:0:32]} 7. 0-0 {[%emt 0:5:22]} Nc6 {[%emt 0:0:18]
} 8. Qe2 {[%emt 0:1:17]} Be7 {[%emt 0:3:5]} 9. Rd1 {[%emt 0:0:21]} 0-0 {[%emt 0:0:7]
} 10. h3 {[%emt 0:0:28]} b6 {[%emt 0:7:16]} 11. d4 {[%emt 0:0:0]} cxd4 {[%emt 0:0:32]} 12. exd4 {[%emt 0:1:29]} Nb4 {[%emt 0:0:47]} 13. Bg5 {[%emt 0:6:30]} Bb7 {[%emt 0:0:28]} 14. Ne5 {[%emt 0:1:54]} Nfd5 {[%emt 0:10:10]
} 15. Nxd5 {[%emt 0:0:49]} Nxd5 {[%emt 0:9:16]} 16. Bd2 {[%emt 0:0:39]
} Bb4 {[%emt 0:5:3]} 17. Bxb4 {[%emt 0:4:41]} Nxb4 {[%emt 0:0:0]} 18. Ra3 {[%emt 0:1:42]} Rc8 {[%emt 0:12:36]} 19. Rg3 {[%emt 0:6:54]} Rc7 {[%emt 0:1:9]} 20. Qd2 {[%emt 0:15:18]} Nd5 {[%emt 0:0:13]} 21. a5 {[%emt 0:7:24]
} bxa5 {[%emt 0:5:7]} 22. Qh6 {[%emt 0:0:42]} f6 {[%emt 0:0:0]} 23. Bd3 {[%emt 0:0:56]} g5 {[%emt 0:0:4]} 24. Nf3 {[%emt 0:3:47]} Rg7 {[%emt 0:1:0]} 25. h4 {[%emt 0:0:20]} Nf4 {[%emt 0:5:12]} 26. hxg5 {[%emt 0:1:10]
} Bxf3 {[%emt 0:3:58]} 27. gxf6 {[%emt 0:4:31]} Qxf6 {[%emt 0:0:0]} 28. Bxh7+ {[%emt 0:10:59]} Kh8 {[%emt 0:0:33]} 29. Bg6+ {[%emt 0:0:0]} Kg8 {[%emt 0:0:7]} 30. Bh7+ {[%emt 0:0:9]} Kh8 {[%emt 0:0:4]} 1/2-1/2

[Event "RUS-chT Premier 2021"]
[White "Potkin,Vladimir"]
[Black "Kukhmazov,Arsen"]
[WhiteTeam "КПРФ"]
[BlackTeam "Школа М. Ботвинника"]
[Site "Sochi"]
[Round "8.11"]
[Annotator "ChessBase"]
[Result "1/2-1/2"]
[Date "2021.05.09"]
[WhiteElo "2578"]
[BlackElo "2451"]
[PlyCount "63"]
[TimeControl "60"]

1. e4 {[%emt 0:0:0]} c6 {[%emt 0:0:0]} 2. d4 {[%emt 0:0:3]} d5 {[%emt 0:0:0]} 3. e5 {[%emt 0:0:37]} Bf5 {[%emt 0:0:19]} 4. Nf3 {[%emt 0:0:54]} e6 {[%emt 0:0:17]} 5. Be2 {[%emt 0:0:32]} c5 {[%emt 0:5:48]} 6. 0-0 {[%emt 0:0:0]} Nc6 {[%emt 0:0:20]} 7. c3 {[%emt 0:0:52]} cxd4 {[%emt 0:2:1]} 8. Nxd4 {[%emt 0:1:11]} Nxd4 {[%emt 0:31:18]} 9. cxd4 {[%emt 0:3:52]} Ne7 {[%emt 0:0:16]
} 10. g4 {[%emt 0:6:52]} Bxb1 {[%emt 0:7:23]} 11. Rxb1 {[%emt 0:0:49]
} Nc6 {[%emt 0:0:37]} 12. f4 {[%emt 0:6:45]} Be7 {[%emt 0:0:0]} 13. Be3 {[%emt 0:10:21]} 0-0 {[%emt 0:2:46]} 14. b4 {[%emt 0:18:29]} Rc8 {[%emt 0:17:1]} 15. Qd2 {[%emt 0:4:15]} a6 {[%emt 0:4:48]} 16. f5 {[%emt 0:0:0]} f6 {[%emt 0:1:39]} 17. fxe6 {[%emt 0:3:16]} fxe5 {[%emt 0:0:42]} 18. Rxf8+ {[%emt 0:0:23]} Qxf8 {[%emt 0:5:35]} 19. dxe5 {[%emt 0:1:53]} d4 {[%emt 0:0:59]
} 20. Bf2 {[%emt 0:3:13]} Bxb4 {[%emt 0:1:15]} 21. Qd3 {[%emt 0:6:53]
} b5 {[%emt 0:4:9]} 22. Qe4 {[%emt 0:2:1]} Qc5 {[%emt 0:0:0]} 23. Bd3 {[%emt 0:6:39]} g6 {[%emt 0:0:2]} 24. Bg3 {[%emt 0:0:5]} Re8 {[%emt 0:1:0]} 25. Qf4 {[%emt 0:7:32]} Rf8 {[%emt 0:1:41]} 26. Qg5 {[%emt 0:0:46]
} Qc3 {[%emt 0:1:51]} 27. Bxg6 {[%emt 0:3:16]} hxg6 {[%emt 0:0:0]} 28. Qxg6+ {[%emt 0:0:2]} Kh8 {[%emt 0:0:5]} 29. Qh6+ {[%emt 0:0:0]} Kg8 {[%emt 0:0:3]} 30. Qg6+ {[%emt 0:0:54]} Kh8 {[%emt 0:0:4]} 31. Qh6+ {[%emt 0:0:33]} Kg8 {[%emt 0:0:3]} 32. Qg6+ {[%emt 0:0:5]} 1/2-1/2

[Event "RUS-chT Premier 2021"]
[White "Vetokhin,Savva"]
[Black "Kornev,Alexei"]
[WhiteTeam "Школа М. Ботвинника"]
[BlackTeam "КПРФ"]
[Site "Sochi"]
[Round "8.12"]
[Annotator "ChessBase"]
[Result "0-1"]
[Date "2021.05.09"]
[WhiteElo "2261"]
[BlackElo "2498"]
[PlyCount "86"]
[TimeControl "60"]

1. Nf3 {[%emt 0:0:0]} Nf6 {[%emt 0:0:0]} 2. g3 {[%emt 0:0:0]} g6 {[%emt 0:0:21]
} 3. Bg2 {[%emt 0:0:0]} Bg7 {[%emt 0:0:6]} 4. 0-0 {[%emt 0:0:0]} 0-0 {[%emt 0:0:9]} 5. d4 {[%emt 0:0:7]} d5 {[%emt 0:0:45]} 6. c3 {[%emt 0:0:18]
} Nbd7 {[%emt 0:3:24]} 7. Nbd2 {[%emt 0:0:59]} c5 {[%emt 0:0:0]} 8. Re1 {[%emt 0:0:55]} cxd4 {[%emt 0:6:19]} 9. cxd4 {[%emt 0:0:10]} Nb6 {[%emt 0:4:9]} 10. Nb1 {[%emt 0:3:36]} Bf5 {[%emt 0:1:37]} 11. Nc3 {[%emt 0:1:8]
} Ne4 {[%emt 0:2:55]} 12. Nh4 {[%emt 0:11:58]} Nxc3 {[%emt 0:0:0]} 13. bxc3 {[%emt 0:0:3]} Be6 {[%emt 0:0:18]} 14. Nf3 {[%emt 0:6:54]} Rc8 {[%emt 0:3:34]} 15. Bd2 {[%emt 0:4:14]} Nc4 {[%emt 0:4:43]} 16. Qb3 {[%emt 0:8:7]
} Qd7 {[%emt 0:6:19]} 17. Bf4 {[%emt 0:0:53]} h6 {[%emt 0:0:0]} 18. Rab1 {[%emt 0:2:48]} b6 {[%emt 0:2:18]} 19. h4 {[%emt 0:7:41]} Rc6 {[%emt 0:3:42]} 20. Nd2 {[%emt 0:6:45]} Rfc8 {[%emt 0:3:49]} 21. Nxc4 {[%emt 0:0:27]
} Rxc4 {[%emt 0:0:7]} 22. Bd2 {[%emt 0:0:23]} Bh3 {[%emt 0:0:0]} 23. Bh1 {[%emt 0:1:19]} e5 {[%emt 0:8:47]} 24. dxe5 {[%emt 0:2:28]} Bxe5 {[%emt 0:2:35]} 25. Qb5 {[%emt 0:0:56]} R8c5 {[%emt 0:9:25]} 26. Qxd7 {[%emt 0:1:3]
} Bxd7 {[%emt 0:0:2]} 27. Red1 {[%emt 0:10:40]} Be6 {[%emt 0:0:0]} 28. Rb3 {[%emt 0:10:43]} Kh7 {[%emt 0:7:25]} 29. Ra3 {[%emt 0:0:19]} d4 {[%emt 0:1:48]} 30. cxd4 {[%emt 0:4:42]} Rxd4 {[%emt 0:0:19]} 31. Kf1 {[%emt 0:5:18]
} Rc2 {[%emt 0:2:29]} 32. Ke1 {[%emt 0:0:1]} Bd6 {[%emt 0:0:0]} 33. Rd3 {[%emt 0:6:47]} Rxd3 {[%emt 0:0:41]} 34. exd3 {[%emt 0:0:1]} Rxa2 {[%emt 0:0:59]} 35. d4 {[%emt 0:0:5]} b5 {[%emt 0:1:30]} 36. Be4 {[%emt 0:1:58]
} Bc4 {[%emt 0:1:27]} 37. h5 {[%emt 0:0:53]} a5 {[%emt 0:0:31]
} 38. hxg6+ {[%emt 0:0:1]} fxg6 {[%emt 0:0:3]} 39. Rb1 {[%emt 0:2:52]} a4 {[%emt 0:3:41]} 40. Bf3 {[%emt 0:0:0]} a3 {[%emt 0:0:0]} 41. Kd1 {[%emt 0:0:0]} Bd3 {[%emt 0:4:39]} 42. Rc1 {[%emt 0:1:4]} Rb2 {[%emt 0:2:17]} 43. Bd5 {[%emt 0:2:41]} a2 {[%emt 0:2:56]} 0-1

[Event "RUS-chT Premier 2021"]
[White "Kryakvin,Dmitry"]
[Black "Ponkratov,Pavel"]
[WhiteTeam "Wildberries Молодёжка"]
[BlackTeam "Медный всадник"]
[Site "Sochi"]
[Round "8.18"]
[Annotator "RC"]
[Result "1/2-1/2"]
[Date "2021.05.09"]
[WhiteElo "2577"]
[BlackElo "2619"]
[PlyCount "54"]
[TimeControl "60"]

1. Nf3 {[%emt 0:0:0]} Nf6 {[%emt 0:0:0]} 2. c4 {[%emt 0:0:25]} e6 {[%emt 0:0:0]
} 3. g3 {[%emt 0:4:5]} d5 {[%emt 0:0:0]} 4. d4 {[%emt 0:0:0]} Bb4+ {[%emt 0:0:0]} 5. Bd2 {[%emt 0:0:30]} Be7 {[%emt 0:0:5]} 6. Bg2 {[%emt 0:1:8]} 0-0 {[%emt 0:0:7]} 7. 0-0 {[%emt 0:0:37]} Nbd7 {[%emt 0:0:0]} 8. Qc2 {[%emt 0:1:11]} Ne4 {[%emt 0:0:8]} 9. Nc3 {[%emt 0:3:3]} Nxd2 {[%emt 0:0:6]} 10. Nxd2 {[%emt 0:2:17]} c6 {[%emt 0:0:5]} 11. e3 {[%emt 0:0:0]} Rb8 {[%emt 0:6:44]} 12. Rfd1 {[%emt 0:10:50]} dxc4 {[%emt 0:22:58]} 13. Nxc4 {[%emt 0:11:52]} b5 {[%emt 0:0:25]} 14. Nd2 {[%emt 0:1:3]} c5 {[%emt 0:20:26]
} 15. dxc5 {[%emt 0:0:44]} Nxc5 {[%emt 0:1:23]} 16. Nb3 {[%emt 0:1:54]
} Qb6 {[%emt 0:2:50]} 17. Nxc5 {[%emt 0:4:48]} Qxc5 {[%emt 0:0:0]} 18. Rac1 {[%emt 0:1:35]} Qb6 {[%emt 0:1:21]} 19. Ne4 {[%emt 0:10:8]} Bb7 {[%emt 0:1:26]} 20. Qc7 {[%emt 0:4:52]} Qxc7 {[%emt 0:2:10]} 21. Rxc7 {[%emt 0:0:6]
} Bd8 {[%emt 0:0:9]} 22. Rcd7 {[%emt 0:6:10]} Bxe4 {[%emt 0:0:0]} 23. Bxe4 {[%emt 0:0:11]} Bb6 {[%emt 0:0:3]} 24. Kf1 {[%emt 0:3:9]} Rfd8 {[%emt 0:1:29]} 25. Ke2 {[%emt 0:0:34]} Kf8 {[%emt 0:1:48]} 26. Rxd8+ {[%emt 0:5:52]
} Rxd8 {[%emt 0:0:6]} 27. Rxd8+ {[%emt 0:0:10]} Bxd8 {[%emt 0:0:0]} 1/2-1/2

[Event "RUS-chT Premier 2021"]
[White "Kobalia,Mikhail"]
[Black "Timofeev,Artyom"]
[WhiteTeam "Гоголевский, 14"]
[BlackTeam "Ладья"]
[Site "Sochi"]
[Round "8.21"]
[Annotator "ChessBase"]
[Result "1/2-1/2"]
[Date "2021.05.09"]
[WhiteElo "2587"]
[BlackElo "2594"]
[PlyCount "100"]
[TimeControl "60"]

1. d4 {[%emt 0:0:0]} d5 {[%emt 0:0:24]} 2. c4 {[%emt 0:0:0]} e6 {[%emt 0:0:0]} 3. Nc3 {[%emt 0:0:22]} Nf6 {[%emt 0:0:17]} 4. Nf3 {[%emt 0:1:46]} c5 {[%emt 0:10:30]} 5. cxd5 {[%emt 0:1:33]} Nxd5 {[%emt 0:0:19]} 6. e4 {[%emt 0:0:0]} Nxc3 {[%emt 0:0:14]} 7. bxc3 {[%emt 0:0:3]} cxd4 {[%emt 0:0:21]} 8. cxd4 {[%emt 0:0:3]} Bb4+ {[%emt 0:0:14]} 9. Bd2 {[%emt 0:0:3]} Bxd2+ {[%emt 0:0:10]
} 10. Qxd2 {[%emt 0:0:3]} 0-0 {[%emt 0:1:19]} 11. Rc1 {[%emt 0:1:26]
} b6 {[%emt 0:1:58]} 12. Bd3 {[%emt 0:0:57]} Bb7 {[%emt 0:0:0]} 13. 0-0 {[%emt 0:0:10]} Nd7 {[%emt 0:0:20]} 14. Qf4 {[%emt 0:10:4]} Rc8 {[%emt 0:2:23]} 15. Rxc8 {[%emt 0:8:36]} Qxc8 {[%emt 0:0:48]} 16. Rc1 {[%emt 0:0:26]
} Qb8 {[%emt 0:0:24]} 17. Qxb8 {[%emt 0:1:33]} Rxb8 {[%emt 0:0:0]} 18. Rc7 {[%emt 0:1:11]} Nf6 {[%emt 0:0:50]} 19. Ng5 {[%emt 0:3:33]} h6 {[%emt 0:35:44]} 20. Nxf7 {[%emt 0:0:39]} Bxe4 {[%emt 0:0:9]} 21. Bxe4 {[%emt 0:7:2]
} Nxe4 {[%emt 0:0:6]} 22. f3 {[%emt 0:7:0]} Nf6 {[%emt 0:0:0]} 23. Rxa7 {[%emt 0:1:38]} Nd5 {[%emt 0:3:18]} 24. Ne5 {[%emt 0:10:56]} Rc8 {[%emt 0:2:47]} 25. h4 {[%emt 0:5:52]} Nf4 {[%emt 0:4:17]} 26. g4 {[%emt 0:19:47]
} Rc1+ {[%emt 0:7:50]} 27. Kf2 {[%emt 0:0:9]} Rc2+ {[%emt 0:0:0]} 28. Kf1 {[%emt 0:0:25]} Rc1+ {[%emt 0:0:8]} 29. Kf2 {[%emt 0:0:2]} Rc2+ {[%emt 0:0:7]} 30. Ke1 {[%emt 0:0:13]} Ng2+ {[%emt 0:0:13]} 31. Kd1 {[%emt 0:0:17]
} Ne3+ {[%emt 0:0:7]} 32. Ke1 {[%emt 0:0:1]} Ng2+ {[%emt 0:0:0]} 33. Kf1 {[%emt 0:0:7]} Nxh4 {[%emt 0:0:25]} 34. Re7 {[%emt 0:4:14]} Ng2 {[%emt 0:7:27]} 35. Rxe6 {[%emt 0:0:26]} Ne3+ {[%emt 0:4:13]} 36. Kg1 {[%emt 0:0:33]
} Rg2+ {[%emt 0:0:45]} 37. Kh1 {[%emt 0:0:1]} Rxa2 {[%emt 0:0:0]} 38. Rxb6 {[%emt 0:0:43]} Rd2 {[%emt 0:0:30]} 39. Rd6 {[%emt 0:1:11]} Kh7 {[%emt 0:9:58]} 40. Rd8 {[%emt 0:0:0]} Nf1 {[%emt 0:0:0]} 41. Kg1 {[%emt 0:7:41]
} Ng3 {[%emt 0:6:25]} 42. Nc6 {[%emt 0:2:13]} h5 {[%emt 0:0:0]} 43. gxh5 {[%emt 0:0:39]} Nxh5 {[%emt 0:1:5]} 44. d5 {[%emt 0:0:57]} Nf4 {[%emt 0:1:16]} 45. Ne7 {[%emt 0:4:1]} Ng6 {[%emt 0:2:8]} 46. Nxg6 {[%emt 0:10:30]
} Kxg6 {[%emt 0:1:4]} 47. Kf1 {[%emt 0:0:16]} Kf6 {[%emt 0:0:0]} 48. Ke1 {[%emt 0:0:4]} Rd4 {[%emt 0:0:7]} 49. Kf2 {[%emt 0:0:4]} Ke7 {[%emt 0:0:28]} 50. Ke3 {[%emt 0:0:32]} Rd1 {[%emt 0:0:7]} 1/2-1/2

[Event "RUS-chT Premier 2021"]
[White "Makhmutov,Rail"]
[Black "Tregubov,Pavel V."]
[WhiteTeam "Ладья"]
[BlackTeam "Гоголевский, 14"]
[Site "Sochi"]
[Round "8.22"]
[Annotator "ChessBase"]
[Result "1/2-1/2"]
[Date "2021.05.09"]
[WhiteElo "2450"]
[BlackElo "2560"]
[PlyCount "46"]
[TimeControl "60"]

1. d4 {[%emt 0:0:0]} Nf6 {[%emt 0:0:0]} 2. c4 {[%emt 0:0:0]} e6 {[%emt 0:0:0]} 3. Nf3 {[%emt 0:0:6]} Bb4+ {[%emt 0:0:0]} 4. Bd2 {[%emt 0:0:9]} Qe7 {[%emt 0:0:0]} 5. e3 {[%emt 0:0:37]} Bxd2+ {[%emt 0:3:53]} 6. Qxd2 {[%emt 0:7:55]
} d6 {[%emt 0:0:11]} 7. Bd3 {[%emt 0:9:38]} e5 {[%emt 0:2:22]} 8. Bc2 {[%emt 0:0:43]} Bg4 {[%emt 0:5:57]} 9. Nc3 {[%emt 0:1:42]} Bxf3 {[%emt 0:22:53]
} 10. gxf3 {[%emt 0:0:4]} exd4 {[%emt 0:0:9]} 11. Qxd4 {[%emt 0:0:13]
} Nc6 {[%emt 0:0:7]} 12. Qd2 {[%emt 0:9:6]} 0-0-0 {[%emt 0:0:0]} 13. 0-0-0 {[%emt 0:7:45]} g6 {[%emt 0:6:30]} 14. Qe2 {[%emt 0:6:14]} Nb4 {[%emt 0:7:24]} 15. Bb1 {[%emt 0:4:17]} Rhe8 {[%emt 0:0:43]} 16. f4 {[%emt 0:8:16]
} Na6 {[%emt 0:2:55]} 17. Rd4 {[%emt 0:3:43]} Nc5 {[%emt 0:0:0]} 18. Rhd1 {[%emt 0:0:45]} Qd7 {[%emt 0:1:41]} 19. Qf3 {[%emt 0:1:29]} Qg4 {[%emt 0:6:24]} 20. Qg3 {[%emt 0:2:38]} Ne6 {[%emt 0:2:41]} 21. R4d2 {[%emt 0:1:1]
} Nc5 {[%emt 0:0:34]} 22. Rd4 {[%emt 0:6:11]} Ne6 {[%emt 0:0:0]} 23. R4d2 {[%emt 0:0:8]} Nc5 {[%emt 0:0:7]} 1/2-1/2

[Event "RUS-chT Premier 2021"]
[White "Murzin,Volodar"]
[Black "Samusenko,Maksim"]
[WhiteTeam "Гоголевский, 14"]
[BlackTeam "Ладья"]
[Site "Sochi"]
[Round "8.23"]
[Annotator "ChessBase"]
[Result "1-0"]
[Date "2021.05.09"]
[WhiteElo "2478"]
[BlackElo "2467"]
[PlyCount "79"]
[TimeControl "60"]

1. e4 {[%emt 0:0:0]} d6 {[%emt 0:0:0]} 2. d4 {[%emt 0:0:0]} Nf6 {[%emt 0:0:0]} 3. Nc3 {[%emt 0:0:1]} g6 {[%emt 0:0:34]} 4. Be3 {[%emt 0:1:27]} c6 {[%emt 0:1:1]} 5. f3 {[%emt 0:7:40]} Nbd7 {[%emt 0:3:5]} 6. Qd2 {[%emt 0:0:0]} b5 {[%emt 0:0:46]} 7. Bd3 {[%emt 0:8:11]} Bb7 {[%emt 0:3:24]} 8. Nge2 {[%emt 0:1:23]} Qc7 {[%emt 0:2:24]} 9. a3 {[%emt 0:10:5]} a6 {[%emt 0:0:0]} 10. g4 {[%emt 0:1:49]} e5 {[%emt 0:8:23]} 11. g5 {[%emt 0:3:21]} Nh5 {[%emt 0:1:49]} 12. Ng3 {[%emt 0:7:10]} Nf4 {[%emt 0:8:35]} 13. Bxf4 {[%emt 0:9:19]
} exf4 {[%emt 0:0:5]} 14. Qxf4 {[%emt 0:0:3]} h6 {[%emt 0:0:0]} 15. h4 {[%emt 0:12:34]} hxg5 {[%emt 0:2:57]} 16. hxg5 {[%emt 0:0:9]} Rxh1+ {[%emt 0:0:5]} 17. Nxh1 {[%emt 0:0:3]} c5 {[%emt 0:4:30]} 18. Nd5 {[%emt 0:6:5]
} Bxd5 {[%emt 0:5:28]} 19. exd5 {[%emt 0:0:23]} Bg7 {[%emt 0:0:0]} 20. 0-0-0 {[%emt 0:2:40]} cxd4 {[%emt 0:1:50]} 21. Nf2 {[%emt 0:0:0]} Rc8 {[%emt 0:7:1]} 22. Kb1 {[%emt 0:7:49]} Nc5 {[%emt 0:25:53]} 23. Rd2 {[%emt 0:4:32]} Be5 {[%emt 0:4:26]} 24. Re2 {[%emt 0:0:14]} Kf8 {[%emt 0:0:0]} 25. Qd2 {[%emt 0:0:24]} Bg7 {[%emt 0:1:36]} 26. Ng4 {[%emt 0:0:49]} Re8 {[%emt 0:0:44]} 27. Rxe8+ {[%emt 0:1:1]} Kxe8 {[%emt 0:0:1]} 28. Nf6+ {[%emt 0:0:24]
} Kd8 {[%emt 0:1:14]} 29. Qe1 {[%emt 0:2:8]} Qe7 {[%emt 0:0:0]} 30. Qa5+ {[%emt 0:0:25]} Kc8 {[%emt 0:0:13]} 31. Bxb5 {[%emt 0:1:30]} axb5 {[%emt 0:1:9]} 32. Qa8+ {[%emt 0:0:5]} Kc7 {[%emt 0:0:3]} 33. Ne8+ {[%emt 0:0:7]
} Kd7 {[%emt 0:2:17]} 34. Qc6+ {[%emt 0:0:4]} Kd8 {[%emt 0:0:0]} 35. Nxd6 {[%emt 0:0:5]} Qd7 {[%emt 0:2:58]} 36. Qxc5 {[%emt 0:0:8]} d3 {[%emt 0:1:47]} 37. cxd3 {[%emt 0:0:7]} Be5 {[%emt 0:0:42]} 38. Ne4 {[%emt 0:0:52]
} b4 {[%emt 0:0:42]} 39. d6 {[%emt 0:0:25]} Qa4 {[%emt 0:0:26]
} 40. Qc7+ {[%emt 0:0:0]} 1-0

[Event "RUS-chT Premier 2021"]
[White "Gaifullin,Artur"]
[Black "Savchenko,Boris"]
[WhiteTeam "Ладья"]
[BlackTeam "Гоголевский, 14"]
[Site "Sochi"]
[Round "8.24"]
[Annotator "ChessBase"]
[Result "1/2-1/2"]
[Date "2021.05.09"]
[WhiteElo "2450"]
[BlackElo "2552"]
[PlyCount "158"]
[TimeControl "60"]

1. d4 {[%emt 0:0:0]} Nf6 {[%emt 0:0:0]} 2. c4 {[%emt 0:0:0]} e6 {[%emt 0:0:0]} 3. Nf3 {[%emt 0:0:0]} c5 {[%emt 0:0:6]} 4. d5 {[%emt 0:0:0]} b5 {[%emt 0:0:6]
} 5. Bg5 {[%emt 0:0:0]} b4 {[%emt 0:0:7]} 6. e4 {[%emt 0:0:0]} d6 {[%emt 0:0:8]} 7. Bd3 {[%emt 0:0:6]} Be7 {[%emt 0:0:46]} 8. 0-0 {[%emt 0:1:14]
} Nbd7 {[%emt 0:4:50]} 9. a3 {[%emt 0:17:13]} e5 {[%emt 0:7:29]
} 10. axb4 {[%emt 0:4:47]} cxb4 {[%emt 0:7:10]} 11. Qa4 {[%emt 0:2:17]} a5 {[%emt 0:8:14]
} 12. c5 {[%emt 0:6:51]} 0-0 {[%emt 0:2:20]} 13. Qc6 {[%emt 0:0:0]} Rb8 {[%emt 0:0:12]} 14. cxd6 {[%emt 0:11:3]} Bxd6 {[%emt 0:0:7]} 15. Be3 {[%emt 0:0:24]} Ng4 {[%emt 0:13:59]} 16. Ba7 {[%emt 0:14:29]} Rb7 {[%emt 0:0:17]
} 17. Qxd6 {[%emt 0:0:37]} Rxa7 {[%emt 0:0:7]} 18. Nbd2 {[%emt 0:4:29]
} f5 {[%emt 0:2:12]} 19. Qc6 {[%emt 0:1:48]} Rc7 {[%emt 0:0:0]} 20. Qa8 {[%emt 0:5:37]} Nc5 {[%emt 0:1:9]} 21. Bc4 {[%emt 0:0:39]} Qd6 {[%emt 0:5:58]} 22. Qxa5 {[%emt 0:0:32]} Kh8 {[%emt 0:0:11]} 23. h3 {[%emt 0:2:50]
} fxe4 {[%emt 0:12:43]} 24. Ng5 {[%emt 0:0:7]} Nf6 {[%emt 0:0:0]} 25. Qxb4 {[%emt 0:0:38]} h6 {[%emt 0:0:48]} 26. Ne6 {[%emt 0:1:0]} Nxd5 {[%emt 0:0:27]} 27. Bxd5 {[%emt 0:1:18]} Bxe6 {[%emt 0:0:9]} 28. Bxe6 {[%emt 0:0:21]} Qxe6 {[%emt 0:0:27]} 29. Nxe4 {[%emt 0:0:58]} Rfc8 {[%emt 0:0:0]} 30. Nxc5 {[%emt 0:1:0]} Rxc5 {[%emt 0:0:10]} 31. Ra8 {[%emt 0:3:19]
} Rxa8 {[%emt 0:3:9]} 32. Qxc5 {[%emt 0:0:5]} Rb8 {[%emt 0:0:26]} 33. Qc3 {[%emt 0:1:0]} Rb3 {[%emt 0:3:36]} 34. Qc2 {[%emt 0:0:54]} e4 {[%emt 0:0:0]} 35. Rd1 {[%emt 0:0:48]} Rb8 {[%emt 0:7:40]} 36. Re1 {[%emt 0:0:16]} Qb3 {[%emt 0:5:37]} 37. Qxb3 {[%emt 0:0:14]} Rxb3 {[%emt 0:0:7]} 38. Re2 {[%emt 0:0:2]
} g5 {[%emt 0:0:10]} 39. Kf1 {[%emt 0:0:12]} Kg7 {[%emt 0:0:0]} 40. Ke1 {[%emt 0:0:0]} Kf6 {[%emt 0:0:0]} 41. Kd1 {[%emt 0:1:23]} Kf5 {[%emt 0:5:47]} 42. Kc2 {[%emt 0:2:21]} Rb8 {[%emt 0:0:32]} 43. Re3 {[%emt 0:1:47]
} h5 {[%emt 0:1:55]} 44. Rc3 {[%emt 0:2:50]} Ra8 {[%emt 0:0:0]} 45. Kd2 {[%emt 0:12:50]} Rd8+ {[%emt 0:1:16]} 46. Ke3 {[%emt 0:0:39]} Rb8 {[%emt 0:0:17]} 47. b3 {[%emt 0:6:18]} Ke5 {[%emt 0:0:45]} 48. h4 {[%emt 0:11:21]
} gxh4 {[%emt 0:0:22]} 49. Rc5+ {[%emt 0:0:5]} Kf6 {[%emt 0:0:0]} 50. Rxh5 {[%emt 0:0:4]} Rxb3+ {[%emt 0:0:16]} 51. Kxe4 {[%emt 0:0:0]} Kg6 {[%emt 0:4:1]} 52. Rd5 {[%emt 0:0:38]} Rb6 {[%emt 0:3:51]} 53. Kf3 {[%emt 0:6:51]} Rf6+ {[%emt 0:0:13]} 54. Ke2 {[%emt 0:0:2]} Ra6 {[%emt 0:0:0]} 55. Re5 {[%emt 0:1:2]} Rb6 {[%emt 0:0:44]} 56. Kf1 {[%emt 0:0:34]} Rb1+ {[%emt 0:1:0]} 57. Re1 {[%emt 0:0:2]} Rb2 {[%emt 0:0:56]} 58. Kg1 {[%emt 0:0:13]
} Kg5 {[%emt 0:0:39]} 59. Re8 {[%emt 0:1:43]} Rb1+ {[%emt 0:0:0]} 60. Kh2 {[%emt 0:0:5]} Rf1 {[%emt 0:0:16]} 61. f3 {[%emt 0:1:22]} Rd1 {[%emt 0:0:47]} 62. Re5+ {[%emt 0:0:10]} Kg6 {[%emt 0:0:9]} 63. Ra5 {[%emt 0:1:25]
} Rb1 {[%emt 0:0:16]} 64. Kh3 {[%emt 0:1:16]} Rh1+ {[%emt 0:0:0]} 65. Kg4 {[%emt 0:0:4]} Rh2 {[%emt 0:0:14]} 66. Rg5+ {[%emt 0:0:5]} Kf6 {[%emt 0:0:29]} 67. Kf4 {[%emt 0:0:7]} Rh1 {[%emt 0:1:22]} 68. Rg8 {[%emt 0:0:35]
} Rg1 {[%emt 0:0:19]} 69. Rg4 {[%emt 0:0:6]} Rh1 {[%emt 0:0:0]} 70. Ke3 {[%emt 0:0:41]} h3 {[%emt 0:0:6]} 71. gxh3 {[%emt 0:0:29]} Rxh3 {[%emt 0:0:6]} 72. Ra4 {[%emt 0:0:4]} Rh1 {[%emt 0:0:6]} 73. Ke4 {[%emt 0:0:6]
} Re1+ {[%emt 0:0:5]} 74. Kf4 {[%emt 0:0:4]} Rf1 {[%emt 0:0:0]} 75. Ra6+ {[%emt 0:0:6]} Kf7 {[%emt 0:0:3]} 76. Ke4 {[%emt 0:0:6]} Rc1 {[%emt 0:0:5]} 77. f4 {[%emt 0:0:8]} Rc5 {[%emt 0:0:3]} 78. Kf3 {[%emt 0:0:8]
} Rd5 {[%emt 0:0:5]} 79. Kg4 {[%emt 0:0:6]} Rc5 {[%emt 0:0:0]} 1/2-1/2